bitfinex-derivatives/quotes_ETHF0:USTF0_20250130
["timestamp","ask_amount","ask_price","bid_price","bid_amount"]
[1738244471649,2.21363617,3249.3,3249.1,0.61563]
[1738244472250,0.61562,3249.2,3249.1,0.61563]
[1738244472448,2.21363617,3249.3,3249.1,0.61563]
[1738244472646,1.59801617,3249.3,3249.2,0.61562]
[1738244472945,1.59801617,3249.3,3248.9,3.2078]
[1738244473450,0.61563,3249.2,3249.1,0.61564]
[1738244473749,0.61563,3249.2,3249.0,0.61565]
[1738244474251,2.21363617,3249.3,3249.1,0.61564]
[1738244474649,0.61562,3249.2,3249.1,0.61564]
[1738244474946,0.6157,3248.8,3248.5,3.82354]
[1738244475149,0.61578,3248.4,3248.1,0.61582]
[1738244475348,2.64300071,3248.3,3248.0,3.2078]
[1738244475647,2.64300071,3248.3,3248.2,0.61581]
[1738244475844,2.64300071,3248.3,3248.0,3.2078]
[1738244476044,2.64300071,3248.3,3248.1,0.61582]
[1738244476449,2.64300071,3248.3,3248.0,3.2078]
[1738244476749,2.64300071,3248.3,3248.2,0.61581]
[1738244477153,2.64300071,3248.3,3248.0,3.2078]
[1738244477344,3.2078,3248.2,3247.6,4.8092]
[1738244477548,2.64300071,3247.7,3247.6,3.82372]
[1738244477745,3.25891071,3247.7,3247.6,3.2078]
[1738244478047,3.25892071,3247.7,3247.2,3.2078]
[1738244478239,2.64300071,3247.7,3247.2,3.2078]
[1738244478439,0.61594,3247.6,3247.2,3.2078]
[1738244478642,2.64300071,3247.7,3247.2,3.2078]
[1738244479149,2.64300071,3247.4,3247.1,1.4818]
[1738244479352,2.64300071,3247.4,3246.7,4.74804]
[1738244479353,0.61603,3247.1,3246.8,0.61607]
[1738244479550,2.64300071,3247.0,3246.8,0.61607]
[1738244479947,2.64300071,3247.0,3246.9,0.61606]
[1738244482052,0.00461617,3247.6,3246.9,5.0]
[1738244482348,0.00461617,3247.6,3247.5,0.61595]
[1738244487352,0.61595,3247.5,3247.2,0.61599]
[1738244487660,0.00148708,3247.6,3247.2,0.61599]
[1738244487661,3.25898071,3247.3,3247.2,0.61599]
[1738244487956,2.64300071,3247.3,3247.2,0.61599]
[1738244488455,0.616,3247.2,3247.0,0.61602]
[1738244488661,0.61604,3247.0,3246.9,0.61928325]
[1738244488955,0.61604,3247.0,3246.9,0.00322325]
[1738244488956,6.46684071,3247.0,3246.9,0.00322325]
[1738244489555,11.46684071,3247.0,3246.9,0.00322325]
[1738244489752,0.61609,3246.8,3246.5,0.61612]
[1738244489955,5.85080071,3247.0,3246.0,1.54057]
[1738244489956,2.64300071,3246.7,3246.6,0.61611]
[1738244490453,2.64300071,3246.7,3246.0,4.74837]
[1738244491054,2.64300071,3246.7,3246.6,0.61612]
[1738244491762,2.64300071,3246.7,3246.0,4.74837]
[1738244491960,3.82392,3246.6,3246.4,0.61615]
[1738244492165,3.2078,3246.6,3245.6,4.6779]
[1738244492362,2.64300071,3246.4,3246.3,0.61616]
[1738244493066,0.61617,3246.3,3246.1,3.2078]
[1738244493269,2.64300071,3246.4,3246.1,3.2078]
[1738244493270,3.25916071,3246.4,3246.1,3.2078]
[1738244493461,2.64300071,3246.4,3246.3,0.61617]
[1738244493760,3.2078,3246.6,3246.5,0.61614]
[1738244493960,3.2078,3247.2,3247.1,0.61602]
[1738244495063,3.2078,3247.7,3247.5,0.61595]
[1738244496161,3.26042779,3247.6,3247.4,0.61596]
[1738244496470,0.61595,3247.5,3247.3,0.61598]
[1738244496969,0.61595,3247.5,3247.4,0.61596]
[1738244497168,0.61595,3247.5,3247.3,0.61597]
[1738244497363,3.20918963,3247.6,3246.8,3.0804]
[1738244497567,0.61603,3247.1,3246.9,0.61605]
[1738244497871,0.61603,3247.1,3246.9,0.61604]
[1738244498560,0.61602,3247.1,3246.9,0.61606]
[1738244498767,3.20770255,3247.2,3246.4,1.54039]
[1738244498964,3.2078,3247.7,3247.5,0.61595]
[1738244499970,3.2078,3248.2,3247.5,0.61595]
[1738244501671,4.75420255,3248.4,3247.0,3.11291]
[1738244501672,1.11448708,3247.6,3247.0,0.61604]
[1738244501969,1.11448708,3247.6,3246.5,4.74811]
[1738244501970,3.20770255,3247.1,3246.5,3.2078]
[1738244502170,10.98100255,3247.5,3246.5,3.2078]
[1738244502373,11.59696255,3247.5,3247.2,0.616]
[1738244502570,10.98100255,3247.5,3247.2,0.616]
[1738244502771,10.98100255,3247.5,3246.7,1.54025]
[1738244502973,9.50090255,3247.5,3247.2,0.61598]
[1738244503265,9.50090255,3247.5,3247.4,0.61596]
[1738244503466,8.01730255,3247.5,3247.3,0.61598]
[1738244503668,3.2078,3247.5,3246.9,1.54016]
[1738244503970,3.2078,3247.5,3246.7,1.54025]
[1738244504171,3.2078,3247.5,3247.4,0.61596]
[1738244504478,0.00148708,3247.6,3247.5,0.61595]
[1738244504972,0.00148708,3247.6,3246.8,1.54016]
[1738244505166,0.00148708,3247.6,3247.3,0.61597]
[1738244505567,0.61596,3247.5,3247.3,0.61598]
[1738244505767,0.61596,3247.4,3247.2,0.61599]
[1738244505974,0.00148708,3247.6,3246.7,4.7281]
[1738244506166,0.616,3247.3,3246.8,0.61608]
[1738244506366,0.616,3247.3,3247.1,0.61601]
[1738244506676,0.61598,3247.4,3247.2,0.616]
[1738244506974,0.61598,3247.3,3247.1,0.61601]
[1738244507174,4.68340255,3247.5,3247.1,0.61601]
[1738244507365,0.61599,3247.3,3247.1,0.61601]
[1738244507569,0.61599,3247.3,3246.7,4.7281]
[1738244507863,0.61599,3247.3,3247.2,0.616]
[1738244509376,0.61601,3247.2,3247.1,0.61601]
[1738244509772,0.616,3247.3,3247.2,0.61599]
[1738244509973,0.61597,3247.4,3247.3,0.61597]
[1738244510271,0.00148708,3247.6,3247.5,0.61595]
[1738244516285,0.61741708,3247.6,3247.5,0.61595]
[1738244516582,3.26405217,3247.6,3247.5,0.61595]
[1738244517682,2.64812217,3247.6,3247.5,0.61595]
[1738244520392,0.00148708,3247.6,3247.5,0.61595]
[1738244521186,2.64663509,3248.5,3248.4,0.61577]
[1738244521586,3.26239509,3248.5,3248.4,0.61577]
[1738244521782,2.64663509,3248.5,3248.0,3.2078]
[1738244522082,5.85443509,3248.1,3247.7,0.61589]
[1738244522285,0.61595,3247.6,3247.5,0.61593]
[1738244522485,2.64663509,3247.6,3247.5,0.61593]
[1738244522686,3.26256509,3247.6,3247.5,0.61593]
[1738244523889,0.61597,3247.5,3247.4,0.61596]
[1738244524091,2.64663509,3247.6,3247.2,0.00148708]
[1738244524497,0.61596,3247.5,3247.4,0.61596]
[1738244524688,0.61598,3247.3,3247.2,0.00148708]
[1738244524887,5.85443509,3247.3,3247.2,0.616]
[1738244525087,5.85443509,3247.3,3246.9,1.15612]
[1738244525385,5.85443509,3247.3,3247.2,0.616]
[1738244525589,5.85443509,3247.3,3246.6,3.2078]
[1738244525785,0.61604,3247.1,3247.0,0.61603]
[1738244526086,3.041,3247.2,3246.6,3.2078]
[1738244526286,3.041,3247.2,3247.0,0.61603]
[1738244526287,0.61603,3247.1,3247.0,0.61603]
[1738244529584,3.65701,3247.2,3247.1,0.61602]
[1738244529990,3.041,3247.2,3246.6,3.2078]
[1738244530189,0.61604,3247.1,3247.0,0.61603]
[1738244530895,0.61605,3247.0,3246.9,0.61605]
[1738244531092,0.61603,3247.1,3247.0,0.61603]
[1738244531394,3.26266509,3247.1,3247.0,0.61603]
[1738244531587,2.64663509,3247.1,3246.6,3.2078]
[1738244531790,2.64663509,3247.1,3247.0,0.61604]
[1738244532686,3.2078,3247.7,3246.7,1.5399]
[1738244532687,2.64663509,3247.4,3246.7,1.5399]
[1738244532887,2.64663509,3247.4,3247.3,0.61598]
[1738244533295,5.85443509,3247.7,3247.3,0.61598]
[1738244533495,5.85443509,3247.7,3247.6,0.61593]
[1738244533797,5.85443509,3247.7,3246.3,1.54042]
[1738244533995,2.64663509,3247.1,3247.0,0.61604]
[1738244534190,2.64663509,3247.4,3246.8,1.5263]
[1738244534397,2.64663509,3247.4,3247.3,0.61597]
[1738244535296,2.64663509,3247.4,3246.8,1.5263]
[1738244535593,2.64663509,3247.4,3247.3,0.61598]
[1738244536102,3.26259509,3247.4,3247.3,0.61598]
[1738244536491,2.64663509,3247.4,3247.3,0.61598]
[1738244537793,5.85443509,3247.7,3247.3,0.61598]
[1738244537999,5.85443509,3247.7,3247.6,0.61593]
[1738244538494,3.2078,3247.7,3247.6,0.61593]
[1738244538692,3.71711,3248.3,3247.6,0.61593]
[1738244538693,8.95573509,3248.3,3247.6,0.61593]
[1738244538892,8.95573509,3248.3,3248.2,0.61581]
[1738244539197,4.14153509,3248.3,3248.2,0.61581]
[1738244539586,2.64663509,3248.3,3248.2,0.61581]
[1738244540795,3.26242509,3248.3,3248.2,0.61581]
[1738244541097,0.61583,3248.2,3247.8,0.61589]
[1738244541302,2.64663509,3247.9,3247.8,0.61589]
[1738244542294,2.64663509,3248.2,3247.8,0.61589]
[1738244542496,2.64663509,3248.2,3248.1,0.61583]
[1738244542997,0.61589,3247.9,3247.8,0.61588]
[1738244543196,3.26252509,3247.9,3247.8,0.61588]
[1738244544500,0.61591,3247.8,3247.7,0.6159]
[1738244544696,5.85443509,3247.9,3247.2,1.522]
[1738244544902,0.61597,3247.5,3247.4,0.61595]
[1738244545797,2.64663509,3247.6,3247.0,3.2078]
[1738244546106,5.85443509,3247.9,3247.2,1.53997]
[1738244546294,6.47031509,3247.9,3247.3,1.53995]
[1738244546604,5.85443509,3247.9,3247.8,0.61589]
[1738244547099,2.64663509,3247.9,3247.8,0.61589]
[1738244547598,2.64663509,3247.9,3247.4,1.4865]
[1738244547801,0.61591,3247.8,3247.7,0.6159]
[1738244548001,2.64663509,3247.9,3247.4,1.4865]
[1738244548202,2.64663509,3247.9,3247.8,0.61589]
[1738244549096,5.37531,3248.3,3247.7,1.53973]
[1738244549097,2.64663509,3248.2,3247.7,1.53973]
[1738244549302,3.2078,3248.3,3248.2,0.61581]
[1738244549601,3.2078,3248.8,3248.5,0.61576]
[1738244549802,6.17e-06,3248.6,3248.5,0.61576]
[1738244553905,6.17e-06,3248.6,3248.5,5.61576]
[1738244558910,6.17e-06,3248.6,3248.5,8.26239509]
[1738244559107,1.58,3250.1,3248.5,8.26239509]
[1738244559108,3.2078,3250.2,3250.1,0.61545]
[1738244561014,0.00461617,3250.5,3250.4,0.6154]
[1738244565616,0.61999617,3250.5,3250.4,0.6154]
[1738244566120,2.08149617,3250.5,3250.4,0.6154]
[1738244566313,1.46611617,3250.5,3250.4,0.6154]
[1738244567514,0.00461617,3250.5,3250.4,0.6154]
[1738244568211,0.61999617,3250.5,3250.4,0.6154]
[1738244568411,0.61542,3250.3,3250.2,0.61543]
[1738244568613,0.6154,3250.4,3250.3,0.6154]
[1738244569319,0.00461617,3250.5,3250.4,0.6154]
[1738244570118,0.61999617,3250.5,3250.4,0.6154]
[1738244570325,0.00461617,3250.5,3250.1,0.00461617]
[1738244570524,0.61541,3250.4,3250.3,0.6154]
[1738244571320,0.00461617,3250.5,3250.1,0.00461617]
[1738244571522,0.00461617,3250.5,3250.4,0.6154]
[1738244572228,0.61999617,3250.5,3250.4,0.6154]
[1738244572526,0.61999617,3250.5,3250.1,0.00461617]
[1738244572730,0.61999617,3250.5,3250.4,0.6154]
[1738244573026,0.00461617,3250.5,3250.4,0.6154]
[1738244574825,6.17e-06,3250.5,3250.4,0.6154]
[1738244575023,6.17e-06,3250.5,3250.4,2.1553]
[1738244575924,6.17e-06,3250.5,3250.4,7.1553]
[1738244579031,1.5234,3252.4,3250.5,3.2078]
[1738244579226,1.5234,3252.4,3250.4,9.68553509]
[1738244579227,3.2078,3252.6,3252.5,0.615]
[1738244579831,3.2078,3253.2,3253.1,0.61489]
[1738244580538,0.00461617,3253.5,3253.4,0.61483]
[1738244580726,0.00461617,3253.5,3252.8,0.00461617]
[1738244580930,0.61488,3253.2,3253.1,0.61489]
[1738244581130,0.61487,3253.2,3252.8,0.61954617]
[1738244581442,3.2078,3253.3,3252.9,0.61491]
[1738244581640,0.6149,3253.0,3252.8,0.61954617]
[1738244581830,3.2078,3253.3,3253.2,0.61487]
[1738244582633,3.2078,3253.3,3252.8,0.00461617]
[1738244582827,3.2078,3253.3,3253.0,0.6149]
[1738244583028,3.2078,3253.3,3252.8,0.00461617]
[1738244583331,3.2078,3253.3,3253.2,0.61487]
[1738244584744,0.00461617,3253.5,3253.4,0.61483]
[1738244586044,6.17e-06,3253.5,3253.4,0.61483]
[1738244588535,6.17e-06,3253.5,3253.1,3.2078]
[1738244588847,6.17e-06,3253.5,3253.4,0.61483]
[1738244589142,6.17e-06,3253.5,3253.1,3.2078]
[1738244589340,0.61486,3253.3,3253.1,3.82267]
[1738244589536,0.61487,3253.2,3253.1,3.2078]
[1738244589738,1.46360617,3253.5,3253.1,3.2078]
[1738244589739,0.61484,3253.4,3253.2,0.61486]
[1738244589942,0.61483,3253.4,3253.1,3.2078]
[1738244590243,0.61483,3253.4,3253.1,3.82268]
[1738244590738,1.46360617,3253.5,3252.8,0.00461617]
[1738244591046,1.46360617,3253.5,3253.0,0.61489]
[1738244591243,1.46360617,3253.5,3252.8,0.00461617]
[1738244591638,0.6149,3253.1,3252.9,0.61492]
[1738244592043,1.46360617,3253.5,3252.8,0.00461617]
[1738244592248,1.46360617,3253.5,3253.0,0.6149]
[1738244592435,0.61488,3253.2,3253.0,0.61489]
[1738244592636,0.61488,3253.2,3252.8,0.00461617]
[1738244592637,0.61485,3253.3,3252.9,0.61492]
[1738244592837,0.61488,3253.2,3253.0,0.6149]
[1738244593143,1.46360617,3253.5,3252.9,0.61492]
[1738244593333,1.46360617,3253.5,3252.8,0.00461617]
[1738244593334,0.61492,3252.9,3252.8,0.00461617]
[1738244593533,3.2078,3253.0,3252.0,0.61509]
[1738244593742,3.2078,3252.4,3251.4,6.3267]
[1738244593942,0.6151,3252.0,3251.4,6.3267]
[1738244594141,1.5705,3252.8,3251.4,6.3267]
[1738244594142,3.2078,3251.9,3251.4,3.1189]
[1738244594337,0.61515,3251.8,3251.6,0.61516]
[1738244594537,6.2306,3251.9,3251.1,1.53816]
[1738244594842,0.61516,3251.7,3251.4,0.00461617]
[1738244595038,0.61514,3251.8,3251.6,0.61517]
[1738244595243,6.2306,3251.9,3251.4,0.00461617]
[1738244595545,0.61517,3251.6,3251.4,0.61981617]
[1738244595745,0.61519,3251.5,3251.4,0.00461617]
[1738244596244,3.82299,3251.5,3251.4,0.00461617]
[1738244596644,11.40291079,3251.5,3250.9,3.2078]
[1738244596938,0.61528,3251.0,3250.9,3.2078]
[1738244597342,0.61527,3251.1,3250.9,3.8231]
[1738244597737,0.61528,3251.0,3250.9,3.2078]
[1738244597940,6.40291079,3251.5,3250.9,3.2078]
[1738244598342,0.61528,3251.0,3250.9,3.2078]
[1738244598534,0.61531,3250.9,3250.7,0.61994]
[1738244598742,3.2078,3251.1,3250.7,0.00461]
[1738244599047,0.61529,3251.0,3250.8,0.61532]
[1738244599943,0.6153,3250.9,3250.7,0.61994]
[1738244600143,0.61532,3250.8,3250.7,0.00461]
[1738244601649,0.61545,3250.2,3249.9,3.2078]
[1738244601845,3.82322,3250.3,3249.9,3.2078]
[1738244602046,3.2078,3250.3,3249.9,3.2078]
[1738244602350,3.82322,3250.3,3250.1,0.61544]
[1738244602550,3.82322,3250.3,3250.0,0.61546]
[1738244603450,0.61543,3250.2,3250.0,0.61546]
[1738244603844,0.61547,3250.0,3249.7,0.61551]
[1738244604346,0.61552,3249.8,3249.6,0.61554]
[1738244604538,0.61552,3249.8,3249.5,3.2078]
[1738244604539,3.2078,3249.9,3249.4,0.61557]
[1738244604746,0.61554,3249.7,3249.4,0.61557]
[1738244605148,3.2078,3249.9,3249.3,1.5613]
[1738244605345,0.61553,3249.8,3249.3,1.5613]
[1738244605749,0.61553,3249.8,3249.6,0.61554]
[1738244606157,0.61553,3249.8,3249.5,0.61556]
[1738244606357,3.2078,3249.9,3249.6,0.61555]
[1738244606561,3.8233,3249.9,3249.6,0.61555]
[1738244606752,3.8233,3249.9,3249.7,0.61553]
[1738244607054,3.2078,3249.9,3249.0,4.7462]
[1738244607251,3.82341,3249.3,3249.0,0.61565]
[1738244607950,3.82341,3249.3,3249.1,0.61563]
[1738244607951,3.2078,3249.3,3249.1,0.61563]
[1738244608352,3.82341,3249.3,3249.1,0.61563]
[1738244608659,3.82341,3249.3,3248.5,3.2078]
[1738244608660,3.19511079,3249.2,3248.5,3.2078]
[1738244609155,3.2078,3249.3,3249.2,0.61562]
[1738244609458,3.2078,3249.3,3248.6,1.53935]
[1738244609662,3.2078,3249.3,3249.2,0.61562]
[1738244610549,1.4615,3249.5,3248.9,1.53921]
[1738244610755,3.19511079,3249.6,3248.9,1.53921]
[1738244610952,3.81066079,3249.6,3249.5,0.61557]
[1738244611160,3.19511079,3249.6,3249.5,0.61557]
[1738244613154,3.2078,3250.1,3249.3,6.40291079]
[1738244613358,6.17e-06,3250.2,3250.1,0.61545]
[1738244613553,6.17e-06,3250.2,3250.1,5.40375]
[1738244613761,6.17e-06,3250.2,3250.1,10.40375]
[1738244615162,3.81018079,3252.2,3250.3,5.23103]
[1738244615459,0.61508,3252.1,3252.0,0.61509]
[1738244615656,3.2078,3252.4,3251.6,1.53793]
[1738244615865,0.61505,3252.3,3252.1,0.61506]
[1738244616052,3.2078,3252.4,3252.2,0.61505]
[1738244616254,3.2078,3252.4,3251.4,3.2078]
[1738244616453,3.2078,3252.4,3252.3,0.61504]
[1738244616654,3.2078,3252.4,3252.2,0.61505]
[1738244616655,3.82283,3252.4,3252.2,0.61505]
[1738244616853,0.61504,3252.3,3252.1,0.61507]
[1738244617171,3.82283,3252.4,3252.2,0.61505]
[1738244617558,3.2078,3252.4,3252.2,0.61505]
[1738244617865,3.82282,3252.4,3252.2,0.61505]
[1738244618467,3.19972696,3252.6,3252.5,0.615]
[1738244618863,3.19972696,3252.6,3252.0,0.00461617]
[1738244619161,3.19972696,3252.6,3252.4,0.61501]
[1738244619361,3.19972696,3252.6,3252.5,0.615]
[1738244619562,3.19972696,3252.6,3252.4,0.61501]
[1738244619761,3.81471696,3252.6,3252.4,0.61501]
[1738244620167,3.19972696,3252.6,3252.5,0.615]
[1738244620570,3.19972696,3252.6,3252.0,0.00461617]
[1738244620761,0.61504,3252.3,3252.1,0.61506]
[1738244620960,3.2078,3252.4,3252.1,0.61506]
[1738244620961,3.82283,3252.4,3252.1,0.61506]
[1738244621262,0.61504,3252.3,3252.0,0.00461617]
[1738244621563,0.61504,3252.3,3252.0,0.61969617]
[1738244622168,3.82283,3252.4,3252.1,0.61506]
[1738244623471,3.82282,3252.4,3252.1,0.61506]
[1738244623767,0.61507,3252.1,3252.0,0.00461617]
[1738244624077,4.30211079,3252.2,3250.7,3.2078]
[1738244624373,0.61521,3251.4,3251.1,0.61525]
[1738244624563,3.19511079,3251.2,3250.7,3.2078]
[1738244624758,0.6153,3251.0,3250.8,0.61532]
[1738244625070,0.61529,3251.0,3250.7,0.61533]
[1738244625662,0.6153,3250.9,3250.7,0.61533]
[1738244625863,6.40291079,3250.8,3250.2,0.61543]
[1738244626066,0.61541,3250.3,3250.1,0.61544]
[1738244626374,0.61544,3250.2,3249.9,0.61548]
[1738244626664,3.82328,3250.0,3249.8,0.6155]
[1738244626870,7.01839079,3250.0,3249.8,0.6155]
[1738244627168,6.40291079,3250.0,3249.3,3.2078]
[1738244627370,0.61552,3249.8,3249.6,0.61554]
[1738244627969,0.6155,3249.9,3249.6,0.61553]
[1738244628160,6.40291079,3250.0,3249.3,3.2078]
[1738244628759,0.61552,3249.8,3249.3,3.2078]
[1738244629066,0.61552,3249.8,3249.6,0.61555]
[1738244629268,0.61551,3249.9,3249.3,3.2078]
[1738244629475,0.61551,3249.9,3249.7,0.61552]
[1738244629666,0.61551,3249.8,3249.6,0.61554]
[1738244630273,0.6155,3249.9,3249.7,0.61552]
[1738244630470,7.01839079,3250.0,3249.8,0.6155]
[1738244630672,0.6155,3249.9,3249.4,0.61559]
[1738244630879,0.6155,3249.9,3249.7,0.61551]
[1738244631069,6.40291079,3250.0,3249.3,3.2078]
[1738244631376,3.2078,3250.0,3249.9,0.61549]
[1738244632077,3.2078,3250.0,3249.4,1.53896]
[1738244632273,0.6155,3249.9,3249.7,0.61552]
[1738244632469,0.6155,3249.9,3249.7,0.61553]
[1738244633477,6.40291079,3250.0,3249.5,0.61556]
[1738244633676,0.61553,3249.7,3249.5,0.61556]
[1738244634282,6.40291079,3250.0,3249.2,2.15469]
[1738244634482,6.40291079,3250.0,3249.9,0.61549]
[1738244634673,7.01839079,3250.0,3249.8,0.6155]
[1738244634873,6.40291079,3250.0,3249.2,1.53907]
[1738244635576,0.61549,3249.9,3249.7,0.61552]
[1738244635881,7.01839079,3250.0,3249.8,0.61551]
[1738244636073,6.40291079,3250.0,3249.2,1.53907]
[1738244636782,7.01839079,3250.0,3249.8,0.6155]
[1738244637277,7.01838079,3250.0,3249.8,0.6155]
[1738244637472,6.40291079,3250.0,3249.9,0.61549]
[1738244638077,3.2078,3250.0,3249.9,0.61549]
[1738244639377,0.61537,3250.6,3250.5,0.61537]
[1738244639581,0.61535,3250.7,3250.6,0.61535]
[1738244639877,6.40752696,3250.8,3250.0,1.53868]
[1738244640079,6.40752696,3250.8,3250.7,0.61534]
[1738244640284,7.02285696,3250.8,3250.6,0.61535]
[1738244640681,6.40752696,3250.8,3250.1,4.74641]
[1738244640881,0.61538,3250.6,3250.4,0.61539]
[1738244641081,6.40752696,3250.8,3250.3,0.61541]
[1738244641286,0.6154,3250.5,3250.3,0.61541]
[1738244641788,0.6154,3250.4,3250.3,0.61541]
[1738244642292,0.61542,3250.3,3250.2,0.61542]
[1738244642490,0.61542,3250.3,3250.1,3.2078]
[1738244642491,3.19511079,3250.4,3250.1,3.2078]
[1738244642688,0.61541,3250.3,3250.1,3.82324]
[1738244642988,3.19511079,3250.4,3250.1,3.2078]
[1738244643190,3.81051079,3250.4,3250.3,0.61541]
[1738244643392,0.61543,3250.2,3250.1,3.2078]
[1738244644393,1.5737,3250.3,3250.2,0.61543]
[1738244644598,0.61543,3250.2,3250.1,3.2078]
[1738244644802,0.61543,3250.2,3250.1,3.82325]
[1738244645193,3.19511079,3250.4,3250.1,3.2078]
[1738244645491,0.61542,3250.3,3250.1,3.82324]
[1738244645688,3.19511079,3250.4,3250.1,3.2078]
[1738244645997,3.19511079,3250.4,3250.3,0.61541]
[1738244646200,3.19511079,3250.4,3249.8,1.53876]
[1738244646493,3.19511079,3250.4,3250.2,0.61542]
[1738244646690,0.61541,3250.3,3250.2,0.61542]
[1738244646892,6.40291079,3250.4,3250.3,0.61541]
[1738244647096,0.61542,3250.3,3250.2,0.61543]
[1738244647293,6.40291079,3250.4,3249.5,4.74671]
[1738244647490,6.40291079,3250.0,3249.0,3.2078]
[1738244647788,6.40291079,3250.0,3249.1,4.5913]
[1738244647995,6.40291079,3250.0,3249.9,0.61549]
[1738244648389,6.40291079,3250.0,3249.4,1.53893]
[1738244648595,3.25855187,3249.8,3249.2,1.53904]
[1738244648794,3.25855187,3249.8,3249.6,0.61553]
[1738244649197,2.64303187,3249.8,3249.7,0.61553]
[1738244650395,3.2078,3250.0,3249.9,0.61549]
[1738244651091,3.2078,3250.0,3249.4,4.74675]
[1738244651295,0.6155,3249.9,3249.8,0.6155]
[1738244651491,3.2078,3250.0,3249.2,1.53906]
[1738244651802,0.61554,3249.7,3249.6,0.61555]
[1738244652202,0.61554,3249.7,3249.2,1.53906]
[1738244652400,0.61557,3249.6,3249.4,0.61558]
[1738244652703,6.41017398,3249.5,3249.1,3.0522]
[1738244653000,6.41017398,3249.5,3248.8,1.53923]
[1738244653299,6.41017398,3249.5,3248.6,3.2078]
[1738244653505,6.41017398,3249.9,3249.4,0.61559]
[1738244653706,6.41017398,3249.9,3249.8,0.61551]
[1738244654094,3.2078,3249.9,3249.8,0.61551]
[1738244656306,1.489,3250.3,3249.8,3.2078]
[1738244656506,1.489,3250.3,3250.2,0.61543]
[1738244656708,1.489,3250.3,3250.2,0.43037359]
[1738244657009,2.10441,3250.3,3250.2,0.43037359]
[1738244657211,0.61544,3250.2,3250.1,0.61544]
[1738244657607,3.82324,3250.2,3250.1,0.61545]
[1738244657912,3.82324,3250.2,3250.0,0.61547]
[1738244657913,0.61546,3250.1,3250.0,0.61547]
[1738244658111,3.2078,3250.2,3250.0,0.61547]
[1738244658798,3.2078,3250.2,3250.1,0.61545]
[1738244659002,1.489,3250.3,3250.2,0.61543]
[1738244659508,3.20237398,3250.4,3250.3,0.61541]
[1738244660101,0.00461617,3250.8,3250.3,3.2078]
[1738244660305,0.00461617,3250.8,3250.7,0.61534]
[1738244660611,1.5358,3251.5,3250.7,0.61534]
[1738244660612,3.2078,3251.5,3251.4,0.61521]
[1738244660912,3.2078,3251.5,3250.7,3.2078]
[1738244660913,6.41017398,3251.5,3250.7,3.2078]
[1738244661103,0.61526,3251.2,3251.1,0.61526]
[1738244661302,0.61527,3251.1,3250.9,0.61529]
[1738244661707,3.81764398,3251.1,3250.9,0.61529]
[1738244662210,6.41017398,3251.1,3251.0,0.61528]
[1738244662710,7.02545398,3251.1,3250.9,0.61529]
[1738244663707,6.41017398,3251.1,3251.0,0.61528]
[1738244664317,3.2078,3251.1,3251.0,0.61528]
[1738244664609,0.00461617,3251.3,3250.7,3.21241617]
[1738244664806,0.00461617,3251.3,3251.2,0.61524]
[1738244665307,3.2078,3251.8,3251.7,0.61515]
[1738244666416,6.41017398,3252.3,3252.2,0.61506]
[1738244666711,3.2078,3253.3,3253.1,0.61487]
[1738244666911,3.2078,3253.3,3253.2,0.61487]
[1738244668520,3.2078,3253.3,3252.9,0.00461617]
[1738244668721,3.2078,3253.3,3253.1,0.61488]
[1738244669217,3.2078,3253.3,3252.9,0.00461617]
[1738244669218,3.2078,3253.3,3253.2,0.61487]
[1738244672817,0.00461617,3253.5,3252.9,0.00461617]
[1738244672818,0.00461617,3253.5,3253.4,0.61483]
[1738244682025,6.17e-06,3253.5,3253.4,0.61483]
[1738244683431,1.4644,3255.0,3253.4,0.61483]
[1738244683432,3.2078,3255.7,3253.4,9.183]
[1738244683629,3.2078,3256.2,3256.1,0.61432]
[1738244684031,3.2078,3256.2,3255.4,3.2078]
[1738244684339,3.2078,3255.5,3253.9,3.2078]
[1738244684534,3.2078,3254.7,3254.1,0.6147]
[1738244684832,3.2078,3254.7,3254.6,0.6146]
[1738244685442,3.2078,3254.7,3254.4,0.00460886]
[1738244685443,1.60300886,3255.0,3254.9,0.61455]
[1738244685834,1.60300886,3255.0,3254.4,0.00460886]
[1738244686040,0.61456,3254.9,3254.6,0.61459]
[1738244686245,1.60300886,3255.0,3254.4,0.00460886]
[1738244686435,0.61457,3254.8,3254.5,0.61461]
[1738244686640,0.61462,3254.5,3254.4,0.00460886]
[1738244687035,3.82241,3254.6,3254.4,0.00460886]
[1738244687338,0.61462,3254.5,3254.4,0.00460886]
[1738244689140,3.2078,3254.6,3254.4,0.00460886]
[1738244689331,1.60300886,3255.0,3254.4,0.00460886]
[1738244689332,4.81080886,3255.0,3254.4,0.00460886]
[1738244689537,3.2078,3254.9,3254.4,0.00460886]
[1738244689744,0.00460886,3255.0,3254.9,0.61455]
[1738244690740,3.21240886,3255.0,3254.5,4.7236]
[1738244690941,0.00460886,3255.0,3254.9,0.61455]
[1738244691539,1.55280886,3255.0,3254.9,0.61455]
[1738244691741,4.76060886,3255.0,3254.9,0.61455]
[1738244692149,4.26060886,3255.0,3254.9,0.61455]
[1738244695841,3.2078,3255.0,3254.9,0.61455]
[1738244696041,0.00460886,3255.3,3255.2,0.61449]
[1738244696250,0.00460886,3255.3,3254.5,1.5158]
[1738244696445,0.61451,3255.1,3254.9,0.61453]
[1738244696645,3.2078,3255.0,3254.5,1.5158]
[1738244696847,3.82233,3255.0,3254.5,1.5158]
[1738244697047,3.82233,3255.0,3254.9,0.61455]
[1738244697048,3.2078,3255.0,3254.9,0.61455]
[1738244697254,0.61909886,3255.3,3254.7,1.53646]
[1738244697552,0.00460886,3255.3,3254.5,1.5158]
[1738244697748,0.61908886,3255.3,3255.0,0.61451]
[1738244697949,0.00460886,3255.3,3254.5,1.5158]
[1738244698146,3.2078,3255.0,3254.5,1.5158]
[1738244698346,3.2078,3255.0,3254.9,0.61455]
[1738244699546,0.61456,3254.9,3254.7,0.61457]